fUSD/lending_fUSD_20241108
["ID","MTS","AMOUNT","RATE_DAILY","PERIOD"]
[341654120,1731065442325,-151.0,0.00026,7]
[341654121,1731065442334,-151.0,0.00026,7]
[341654122,1731065442343,-151.0,0.00026,7]
[341654123,1731065442352,-151.0,0.00026,7]
[341654124,1731065442361,-151.0,0.00026,7]
[341654125,1731065442370,-151.0,0.00026,7]
[341654126,1731065442380,-221.864599,0.00026,7]
[341654127,1731065442390,-221.864599,0.00026,7]
[341654128,1731065442399,-151.0,0.00026,7]
[341654129,1731065442409,-151.0,0.00026,7]
[341654130,1731065442418,-163.895009,0.00026,7]
[341654131,1731065442427,-151.0,0.00026,7]
[341654132,1731065442437,-151.0,0.00026,7]
[341654133,1731065442446,-276.790871,0.00026,7]
[341654134,1731065442455,-4081.0,0.00026,2]
[341654135,1731065442465,-308.485947,0.00026,7]
[341654136,1731065442475,-308.485947,0.00026,7]
[341654137,1731065442484,-330.57230106,0.00026007,2]
[341654138,1731065442493,-162.24938614,0.00026015,2]
[341654139,1731065442502,-200.0,0.00026015,2]
[341654140,1731065442513,-410.380806,0.00026043,2]
[341654141,1731065442523,-4606.34645191,0.0002615,2]
[341654143,1731065442532,-1000.0,0.00026173,2]
[341654145,1731065442541,-1863.02257042,0.00026194,2]
[341654146,1731065442551,-1070.37044302,0.00026199,10]
[341654147,1731065442560,-241.06413,0.000262,7]
[341654148,1731065442569,-151.0,0.000262,7]
[341654149,1731065442579,-151.0,0.000262,7]
[341654150,1731065442588,-151.0,0.000262,7]
[341654151,1731065442597,-151.0,0.000262,7]
[341654152,1731065442607,-151.0,0.000262,7]
[341654153,1731065442618,-151.0,0.000262,7]
[341654154,1731065442628,-151.0,0.000262,7]
[341654155,1731065442638,-151.0,0.000262,7]
[341654156,1731065442647,-2294.334272,0.000262,7]
[341654157,1731065442657,-2294.334272,0.000262,7]
[341654158,1731065442666,-151.0,0.000262,7]
[341654159,1731065442676,-200.0,0.0002629,2]
[341654160,1731065442685,-208.0,0.0002629,2]
[341654161,1731065442694,-151.0,0.00026298,7]
[341654162,1731065442704,-151.0,0.00026298,7]
[341654163,1731065442714,-151.0,0.00026298,7]
[341654164,1731065442724,-151.622467,0.00026298,7]
[341654165,1731065442734,-152.268613,0.000263,7]
[341654166,1731065442743,-151.0,0.000263,7]
[341654167,1731065442753,-151.0,0.000263,7]
[341654168,1731065442765,-151.0,0.000263,7]
[341654169,1731065442774,-224.019155,0.000263,7]
[341654170,1731065442785,-224.019155,0.000263,7]
[341654171,1731065442794,-459.56934897,0.000263,2]
[341654172,1731065442804,-410.380806,0.00026329,2]
[341654173,1731065442813,-194.0,0.0002636,16]
[341654174,1731065442822,-151.0,0.00026391,7]
[341654175,1731065442832,-151.0,0.00026391,7]
[341654176,1731065442841,-151.0,0.00026391,7]
[341654178,1731065442851,-152.206591,0.00026391,7]
[341654179,1731065442860,-1866.526171,0.000264,2]
[341654180,1731065442870,-151.0,0.000264,7]
[341654181,1731065442879,-151.0,0.000264,7]
[341654182,1731065442888,-4606.34645191,0.000264,2]
[341654183,1731065442897,-177.621912,0.000264,2]
[341654184,1731065442907,-10700.0,0.000264,9]
[341654185,1731065442916,-152.0,0.00026421,3]
[341654186,1731065442925,-330.57230106,0.00026453,2]
[341654187,1731065442934,-449.26,0.00026454,2]
[341654188,1731065442943,-151.0,0.00026498,7]
[341654189,1731065442953,-151.0,0.00026498,7]
[341654190,1731065442962,-151.0,0.00026498,7]
[341654191,1731065442971,-151.0,0.00026498,7]
[341654192,1731065442980,-151.0,0.00026498,7]
[341654193,1731065442990,-151.0,0.00026498,7]
[341654194,1731065442999,-2100.0,0.000265,9]
[341654195,1731065443010,-151.0,0.0002651,7]
[341654196,1731065443019,-1863.02257042,0.00026547,2]
[341654197,1731065443028,-239.43747955,0.0002655,2]
[341654198,1731065443038,-200.0,0.0002658,2]
[341654199,1731065443047,-251.950648,0.000266,7]
[341654200,1731065443057,-251.950648,0.000266,7]
[341654201,1731065443066,-151.0,0.000266,7]
[341654202,1731065443079,-2100.0,0.000266,9]
[341654203,1731065443089,-18693.9040349,0.0002661,2]
[341654204,1731065443098,-410.380806,0.00026614,2]
[341654205,1731065443109,-239.43747954,0.00026625,2]
[341654206,1731065443119,-4606.34645191,0.0002665,2]
[341654207,1731065443128,-154.75,0.00026664,2]
[341654208,1731065443138,-200.0,0.0002668,2]
[341654209,1731065443148,-208.0,0.0002668,2]
[341654210,1731065443159,-151.0,0.0002668,7]
[341654211,1731065443168,-151.0,0.0002668,7]
[341654212,1731065443178,-151.0,0.0002668,7]
[341654213,1731065443188,-151.0,0.0002668,7]
[341654214,1731065443198,-154.006764,0.0002668,7]
[341654215,1731065443207,-163.314185,0.0002668,7]
[341654216,1731065443216,-151.0,0.0002668,7]
[341654217,1731065443226,-151.0,0.0002668,7]
[341654218,1731065443235,-151.0,0.0002668,7]
[341654219,1731065443244,-151.0,0.0002668,7]
[341654220,1731065443254,-151.0,0.0002668,7]
[341654221,1731065443266,-898.088821,0.0002668,7]
[341654222,1731065443275,-898.088821,0.0002668,7]
[341654223,1731065443284,-1874.701715,0.0002668,7]
[341654224,1731065443294,-1874.701715,0.0002668,7]
[341654225,1731065443303,-561.868256,0.0002668,7]
[341654226,1731065443313,-524.217914,0.0002668,7]
[341654227,1731065443323,-524.217914,0.0002668,7]
[341654228,1731065443332,-151.0,0.0002668,7]
[341654229,1731065443341,-151.0,0.0002668,7]
[341654230,1731065443350,-193132.0,0.00026685,2]
[341654231,1731065443360,-151.0,0.00026685,7]
[341654232,1731065443370,-180.803343,0.00026685,7]
[341654233,1731065443379,-151.0,0.00026685,7]
[341654234,1731065443388,-151.0,0.00026685,7]
[341654235,1731065443397,-241.06413,0.00026685,7]
[341654236,1731065443407,-151.0,0.00026685,7]
[341654237,1731065443416,-151.0,0.00026685,7]
[341654238,1731065443425,-151.0,0.00026685,7]
[341654239,1731065443435,-151.0,0.00026685,7]
[341654240,1731065443445,-151.0,0.00026685,7]
[341654241,1731065443455,-151.0,0.00026685,7]
[341654242,1731065443464,-151.0,0.00026685,7]
[341654243,1731065443473,-224.019155,0.00026685,7]
[341654244,1731065443483,-224.019155,0.00026685,7]
[341654245,1731065443492,-151.0,0.00026685,7]
[341654246,1731065443502,-151.0,0.00026685,7]
[341654247,1731065443515,-151.0,0.00026685,7]
[341654248,1731065443524,-151.0,0.00026685,7]
[341654249,1731065443534,-245.599682,0.00026685,7]
[341654250,1731065443543,-251.950648,0.00026685,7]
[341654251,1731065443552,-157.882408,0.00026685,7]
[341654252,1731065443562,-251.950648,0.00026685,7]
[341654253,1731065443572,-153.957314,0.00026685,7]
[341654254,1731065443581,-227.456826,0.00026685,7]
[341654255,1731065443590,-151.0,0.00026685,7]
[341654256,1731065443599,-151.0,0.00026685,7]
[341654257,1731065443609,-151.0,0.00026685,7]
[341654258,1731065443618,-151.0,0.00026685,7]
[341654259,1731065443627,-151.0,0.00026685,7]
[341654260,1731065443637,-151.0,0.00026685,7]
[341654261,1731065443646,-197.01724,0.00026685,7]
[341654262,1731065443655,-151.0,0.00026685,7]
[341654263,1731065443664,-898.088821,0.00026685,7]
[341654264,1731065443673,-898.088821,0.00026685,7]
[341654265,1731065443682,-1874.701715,0.00026685,7]
[341654266,1731065443691,-151.0,0.00026685,7]
[341654267,1731065443701,-292.27153,0.00026685,7]
[341654268,1731065443710,-1874.701715,0.00026685,7]
[341654269,1731065443719,-151.0,0.00026685,7]
[341654270,1731065443729,-292.27153,0.00026685,7]
[341654271,1731065443738,-561.868256,0.00026685,7]
[341654272,1731065443747,-561.868256,0.00026685,7]
[341654273,1731065443757,-151.0,0.00026685,7]
[341654274,1731065443769,-151.0,0.00026685,7]
[341654275,1731065443779,-151.0,0.00026685,7]
[341654276,1731065443789,-151.0,0.00026685,7]
[341654277,1731065443798,-524.217914,0.00026685,7]
[341654278,1731065443807,-524.217914,0.00026685,7]
[341654279,1731065443817,-151.0,0.00026685,7]
[341654280,1731065443826,-151.0,0.00026685,7]
[341654282,1731065443836,-151.0,0.00026685,7]
[341654284,1731065443845,-151.0,0.00026685,7]
[341654285,1731065443854,-151.0,0.00026685,7]
[341654286,1731065443863,-151.0,0.00026685,7]
[341654287,1731065443872,-152.362195,0.00026685,7]
[341654288,1731065443882,-151.0,0.00026685,7]
[341654289,1731065443893,-151.0,0.00026685,7]
[341654290,1731065443903,-151.0,0.00026685,7]
[341654291,1731065443913,-221.864599,0.00026685,7]
[341654292,1731065443922,-221.864599,0.00026685,7]
[341654293,1731065443931,-151.0,0.00026685,7]
[341654294,1731065443940,-151.0,0.00026685,7]
[341654295,1731065443949,-151.0,0.00026685,7]
[341654296,1731065443960,-154.906223,0.00026685,7]
[341654297,1731065443970,-2294.334272,0.00026685,7]
[341654298,1731065443979,-2294.334272,0.00026685,7]
[341654299,1731065443988,-151.0,0.00026685,7]
[341654300,1731065443998,-308.485947,0.00026685,7]
[341654301,1731065444011,-308.485947,0.00026685,7]
[341654302,1731065444021,-500.0,0.00026697,2]
[341654303,1731065444031,-138984.94023094,0.00026698,2]
[341654304,1731065444040,-17979.11827043,0.00026698,2]
[341654305,1731065444049,-151.819132,0.00026698,7]
[341654306,1731065444058,-157.420265,0.00026698,7]
[341654307,1731065444069,-151.0,0.00026698,7]
[341654308,1731065444081,-176.794657,0.00026698,7]
[341654309,1731065444091,-241.06413,0.00026698,7]
[341654310,1731065444100,-151.0,0.00026698,7]
[341654311,1731065444109,-151.0,0.00026698,7]
[341654312,1731065444121,-151.0,0.00026698,7]
[341654313,1731065444131,-205.59338,0.00026698,7]
[341654315,1731065444141,-151.0,0.00026698,7]
[341654317,1731065444152,-151.0,0.00026698,7]
[341654318,1731065444162,-180.604626,0.00026698,7]
[341654319,1731065444172,-224.019155,0.00026698,7]
[341654320,1731065444181,-224.019155,0.00026698,7]
[341654321,1731065444190,-152.341904,0.00026698,7]
[341654322,1731065444199,-151.331078,0.00026698,7]
[341654323,1731065444208,-151.0,0.00026698,7]
[341654324,1731065444217,-151.0,0.00026698,7]
[341654325,1731065444227,-251.950648,0.00026698,7]
[341654326,1731065444236,-251.950648,0.00026698,7]
[341654327,1731065444246,-151.0,0.00026698,7]
[341654328,1731065444255,-151.0,0.00026698,7]
[341654329,1731065444267,-151.0,0.00026698,7]
[341654330,1731065444276,-151.0,0.00026698,7]
[341654331,1731065444285,-151.0,0.00026698,7]
[341654332,1731065444295,-151.0,0.00026698,7]
[341654333,1731065444304,-898.088821,0.00026698,7]
[341654334,1731065444314,-898.088821,0.00026698,7]
[341654335,1731065444324,-1874.701715,0.00026698,7]
[341654336,1731065444334,-151.0,0.00026698,7]
[341654337,1731065444343,-1874.701715,0.00026698,7]
[341654338,1731065444352,-292.27153,0.00026698,7]
[341654339,1731065444362,-151.0,0.00026698,7]
[341654340,1731065444372,-292.27153,0.00026698,7]
[341654341,1731065444381,-561.868256,0.00026698,7]
[341654342,1731065444391,-561.868256,0.00026698,7]
[341654343,1731065444401,-151.0,0.00026698,7]
[341654344,1731065444411,-151.0,0.00026698,7]
[341654345,1731065444421,-151.0,0.00026698,7]
[341654346,1731065444430,-151.0,0.00026698,7]
[341654347,1731065444440,-524.217914,0.00026698,7]
[341654348,1731065444449,-524.217914,0.00026698,7]
[341654349,1731065444460,-151.0,0.00026698,7]
[341654350,1731065444470,-151.0,0.00026698,7]
[341654351,1731065444480,-151.0,0.00026698,7]
[341654352,1731065444489,-151.0,0.00026698,7]
[341654353,1731065444499,-151.0,0.00026698,7]
[341654354,1731065444509,-151.0,0.00026698,7]
[341654355,1731065444520,-151.66614,0.00026698,7]
[341654356,1731065444529,-151.0,0.00026698,7]
[341654357,1731065444538,-151.834634,0.00026698,7]
[341654358,1731065444548,-221.864599,0.00026698,7]
[341654359,1731065444557,-221.864599,0.00026698,7]
[341654360,1731065444567,-151.0,0.00026698,7]
[341654361,1731065444576,-151.0,0.00026698,7]
[341654362,1731065444586,-151.0,0.00026698,7]
[341654363,1731065444595,-151.0,0.00026698,7]
[341654364,1731065444605,-151.0,0.00026698,7]
[341654365,1731065444615,-151.0,0.00026698,7]
[341654366,1731065444626,-308.485947,0.00026698,7]
[341654367,1731065444635,-308.485947,0.00026698,7]
[341654368,1731065444645,-151.0,0.000267,7]
[341654369,1731065444654,-2100.0,0.000267,9]
[341654370,1731065444664,-239.43747954,0.000267,2]
[341654371,1731065444673,-325371.60358656,0.000267,2]
[341654372,1731065444682,-1921.0,0.00026779,2]
[341654373,1731065444692,-921.0,0.00026779,2]
[341654374,1731065444701,-1258.0,0.00026779,2]
[341654375,1731065444711,-813.0,0.00026779,2]
[341654376,1731065444720,-2909.0,0.00026779,2]
[341654377,1731065444730,-3463.0,0.00026779,2]
[341654378,1731065444740,-1090.0,0.00026779,2]
[341654379,1731065444749,-1399.853,0.00026779,2]
[341654380,1731065444760,-463.531,0.00026779,2]
[341654381,1731065444770,-886780.61828315,0.000268,2]
[341654382,1731065444978,-215100.1044743,0.000268,2]
[341654383,1731065444988,-151.0,0.000268,7]
[341654384,1731065444997,-500.0,0.000268,2]
[341654385,1731065445006,-500.0,0.000268,2]
[341654386,1731065445017,-500.0,0.000268,2]
[341654387,1731065445026,-500.0,0.000268,2]
[341654388,1731065445036,-500.0,0.000268,2]
[341654389,1731065445044,-500.0,0.000268,2]
[341654390,1731065445054,-500.0,0.000268,2]
[341654391,1731065445063,-2100.0,0.000268,9]
[341654392,1731065445076,-163217.77455694,0.0002688,2]
[341654393,1731065445085,-151.0,0.0002688,7]
[341654394,1731065445095,-241.06413,0.0002688,7]
[341654395,1731065445104,-151.0,0.0002688,7]
[341654396,1731065445115,-151.0,0.0002688,7]
[341654397,1731065445125,-151.0,0.0002688,7]
[341654398,1731065445135,-151.0,0.0002688,7]
[341654399,1731065445144,-151.0,0.0002688,7]
[341654400,1731065445156,-224.019155,0.0002688,7]
[341654401,1731065445166,-224.019155,0.0002688,7]
[341654402,1731065445176,-151.0,0.0002688,7]
[341654403,1731065445186,-151.0,0.0002688,7]
[341654404,1731065445196,-251.950648,0.0002688,7]
[341654405,1731065445206,-251.950648,0.0002688,7]
[341654406,1731065445216,-152.862068,0.0002688,7]
[341654407,1731065445225,-151.0,0.0002688,7]
[341654408,1731065445235,-151.0,0.0002688,7]
[341654409,1731065445246,-151.0,0.0002688,7]
[341654410,1731065445256,-151.0,0.0002688,7]
[341654411,1731065445268,-151.0,0.0002688,7]
[341654412,1731065445278,-898.088821,0.0002688,7]
[341654413,1731065445287,-898.088821,0.0002688,7]
[341654414,1731065445296,-1874.701715,0.0002688,7]
[341654415,1731065445306,-151.0,0.0002688,7]
[341654416,1731065445315,-1874.701715,0.0002688,7]
[341654417,1731065445325,-292.27153,0.0002688,7]
[341654418,1731065445335,-151.0,0.0002688,7]
[341654419,1731065445345,-292.27153,0.0002688,7]
[341654420,1731065445354,-561.868256,0.0002688,7]
[341654421,1731065445365,-561.868256,0.0002688,7]
[341654422,1731065445375,-151.0,0.0002688,7]
[341654423,1731065445385,-151.0,0.0002688,7]
[341654424,1731065445396,-164.626384,0.0002688,7]
[341654425,1731065445407,-151.0,0.0002688,7]
[341654426,1731065445417,-524.217914,0.0002688,7]
[341654427,1731065445427,-524.217914,0.0002688,7]
[341654428,1731065445438,-151.0,0.0002688,7]
[341654429,1731065445448,-151.0,0.0002688,7]
[341654430,1731065445459,-151.0,0.0002688,7]
[341654431,1731065445470,-151.0,0.0002688,7]
[341654432,1731065445479,-172.097753,0.0002688,7]
[341654433,1731065445491,-151.0,0.0002688,7]
[341654434,1731065445502,-151.0,0.0002688,7]
[341654435,1731065445514,-221.864599,0.0002688,7]
[341654436,1731065445525,-221.864599,0.0002688,7]
[341654437,1731065445534,-151.0,0.0002688,7]
[341654438,1731065445548,-154.880012,0.0002688,7]
[341654439,1731065445559,-151.0,0.0002688,7]
[341654440,1731065445569,-294.732781,0.0002688,7]
[341654441,1731065445579,-151.0,0.0002688,7]
[341654442,1731065445588,-151.0,0.0002688,7]
[341654443,1731065445598,-2294.334272,0.0002688,7]
[341654444,1731065445608,-2294.334272,0.0002688,7]
[341654445,1731065445619,-152.518916,0.0002688,7]
[341654446,1731065445629,-151.0,0.0002688,7]
[341654447,1731065445638,-151.0,0.0002688,7]
[341654448,1731065445648,-151.0,0.0002688,7]
[341654449,1731065445658,-308.485947,0.0002688,7]
[341654450,1731065445669,-308.485947,0.0002688,7]
[341654451,1731065445678,-151.0,0.0002688,7]
[341654452,1731065445689,-196.47323622,0.00026897,2]
[341654453,1731065445699,-196.0,0.000269,10]
[341654454,1731065445709,-13350.96495326,0.000269,2]
[341654455,1731065445720,-1123.91904584,0.000269,2]
[341654456,1731065445731,-2342.48199892,0.000269,2]
[341654457,1731065445741,-1640.29877096,0.000269,2]
[341654458,1731065445751,-1863.02257042,0.000269,2]
[341654459,1731065445761,-3942.66864499,0.000269,2]
[341654460,1731065445771,-4606.34645191,0.000269,2]
[341654461,1731065445781,-177.621912,0.000269,2]
[341654462,1731065445793,-2657.0,0.000269,9]
[341654463,1731065445803,-459.56934897,0.000269,2]
[341654464,1731065445814,-2116.51,0.000269,7]
[341654465,1731065445824,-609.96777616,0.000269,2]
[341654466,1731065445835,-330.57230106,0.000269,2]
[341654467,1731065445845,-150.110806,0.00026927,3]
[341654468,1731065445856,-150.110806,0.00026928,3]
[341654469,1731065445867,-159.890726,0.0002693,14]
[341654470,1731065445876,-150.110806,0.00026937,3]
[341654471,1731065445886,-150.110806,0.00026938,3]
[341654472,1731065445897,-1000.0,0.00026942,2]
[341654473,1731065445907,-150.110806,0.00026947,4]
[341654474,1731065445917,-150.110806,0.00026948,3]
[341654475,1731065445927,-150.110806,0.00026957,4]
[341654476,1731065445937,-150.110806,0.00026958,3]
[341654477,1731065445947,-165.66,0.00026963,2]
[341654478,1731065445957,-150.110806,0.00026967,4]
[341654479,1731065445967,-150.110806,0.00026968,3]
[341654480,1731065445977,-150.110806,0.00026977,4]
[341654481,1731065445987,-150.110806,0.00026978,4]
[341654482,1731065445998,-151.0,0.00026982,7]
[341654483,1731065446008,-151.0,0.00026982,7]
[341654484,1731065446018,-151.0,0.00026982,7]
[341654485,1731065446029,-151.0,0.00026982,7]
[341654486,1731065446039,-151.0,0.00026982,7]
[341654487,1731065446049,-251.950648,0.00026982,7]
[341654488,1731065446059,-251.950648,0.00026982,7]
[341654489,1731065446069,-151.0,0.00026982,7]
[341654490,1731065446080,-151.0,0.00026982,7]
[341654491,1731065446090,-268.414246,0.00026982,7]
[341654492,1731065446100,-151.0,0.00026982,7]
[341654493,1731065446110,-151.0,0.00026982,7]
[341654494,1731065446120,-898.088821,0.00026982,7]
[341654496,1731065446130,-898.088821,0.00026982,7]
[341654498,1731065446139,-1874.701715,0.00026982,7]
[341654500,1731065446150,-151.0,0.00026982,7]
[341654502,1731065446161,-1874.701715,0.00026982,7]
[341654504,1731065446171,-292.27153,0.00026982,7]
[341654506,1731065446181,-151.0,0.00026982,7]
[341654508,1731065446191,-292.27153,0.00026982,7]
[341654510,1731065446201,-561.868256,0.00026982,7]
[341654512,1731065446212,-561.868256,0.00026982,7]
[341654514,1731065446221,-151.0,0.00026982,7]
[341654516,1731065446232,-151.0,0.00026982,7]
[341654518,1731065446242,-151.0,0.00026982,7]
[341654520,1731065446252,-524.217914,0.00026982,7]
[341654522,1731065446264,-524.217914,0.00026982,7]
[341654524,1731065446274,-151.0,0.00026982,7]
[341654526,1731065446284,-151.0,0.00026982,7]
[341654528,1731065446294,-5993.0073868,0.00026982,2]
[341654530,1731065446303,-5518.9078107,0.00026982,2]
[341654532,1731065446313,-5044.8082346,0.00026982,2]
[341654534,1731065446322,-4570.7086585,0.00026982,2]
[341654536,1731065446332,-4096.6090824,0.00026982,2]
[341654538,1731065446341,-151.0,0.00026982,7]
[341654540,1731065446351,-151.0,0.00026982,7]
[341654542,1731065446362,-151.0,0.00026982,7]
[341654544,1731065446372,-221.864599,0.00026982,7]
[341654546,1731065446382,-221.864599,0.00026982,7]
[341654548,1731065446392,-151.0,0.00026982,7]
[341654550,1731065446402,-151.0,0.00026982,7]
[341654552,1731065446412,-308.485947,0.00026982,7]
[341654554,1731065446421,-308.485947,0.00026982,7]
[341654556,1731065446431,-150.110806,0.00026987,4]
[341654558,1731065446440,-150.110806,0.00026987,3]
[341654560,1731065446451,-150.110806,0.00026988,4]
[341654562,1731065446460,-170.26037077,0.0002699,2]
[341654564,1731065446470,-4464.300001,0.0002699,3]
[341654566,1731065446480,-5050.0,0.0002699,12]
[341654568,1731065446489,-5050.0,0.0002699,13]
[341654570,1731065446499,-5050.0,0.0002699,14]
[341654572,1731065446509,-5050.0,0.0002699,15]
[341654574,1731065446520,-5050.0,0.0002699,18]
[341654576,1731065446531,-550.0,0.0002699,2]
[341654578,1731065446542,-241.06413,0.0002699,7]
[341654581,1731065446552,-151.0,0.0002699,7]
[341654583,1731065446563,-153.958296,0.0002699,7]
[341654585,1731065446573,-224.019155,0.0002699,7]
[341654587,1731065446583,-224.019155,0.0002699,7]
[341654589,1731065446593,-72850.44306711,0.00026997,2]
[341654591,1731065446604,-3451.1,0.00026997,2]
[341654593,1731065446614,-151.0,0.00026997,7]
[341654595,1731065446625,-151.0,0.00026997,7]
[341654597,1731065446635,-151.0,0.00026997,7]
[341654599,1731065446645,-241.06413,0.00026997,7]
[341654601,1731065446654,-151.0,0.00026997,7]
[341654603,1731065446665,-151.0,0.00026997,7]
[341654605,1731065446675,-151.0,0.00026997,7]
[341654607,1731065446683,-224.019155,0.00026997,7]
[341654609,1731065446693,-224.019155,0.00026997,7]
[341654611,1731065446703,-151.0,0.00026997,7]
[341654613,1731065446712,-151.0,0.00026997,7]
[341654615,1731065446722,-251.950648,0.00026997,7]
[341654617,1731065446731,-251.950648,0.00026997,7]
[341654619,1731065446740,-151.0,0.00026997,7]
[341654621,1731065446750,-238.08916,0.00026997,7]
[341654623,1731065446759,-151.0,0.00026997,7]
[341654625,1731065446769,-151.0,0.00026997,7]
[341654627,1731065446779,-898.088821,0.00026997,7]
[341654629,1731065446789,-898.088821,0.00026997,7]
[341654631,1731065446798,-1874.701715,0.00026997,7]
[341654632,1731065446808,-151.0,0.00026997,7]
[341654634,1731065446817,-1874.701715,0.00026997,7]
[341654636,1731065446826,-292.27153,0.00026997,7]
[341654638,1731065446836,-151.0,0.00026997,7]
[341654640,1731065446845,-292.27153,0.00026997,7]
[341654642,1731065446854,-561.868256,0.00026997,7]
[341654644,1731065446863,-561.868256,0.00026997,7]
[341654646,1731065446872,-151.0,0.00026997,7]
[341654648,1731065446881,-258.576633,0.00026997,7]
[341654650,1731065446890,-283.745,0.00026997,7]
[341654652,1731065446899,-524.217914,0.00026997,7]
[341654654,1731065446909,-524.217914,0.00026997,7]
[341654656,1731065446918,-151.0,0.00026997,7]
[341654658,1731065446927,-151.0,0.00026997,7]
[341654660,1731065446936,-151.0,0.00026997,7]
[341654661,1731065446945,-151.0,0.00026997,7]
[341654662,1731065446955,-221.864599,0.00026997,7]
[341654663,1731065446964,-221.864599,0.00026997,7]
[341654664,1731065446973,-151.0,0.00026997,7]
[341654665,1731065446982,-151.0,0.00026997,7]
[341654666,1731065446991,-308.485947,0.00026997,7]
[341654667,1731065447001,-308.485947,0.00026997,7]
[341654668,1731065447011,-10053.43502151,0.00026999,2]
[341654669,1731065447020,-3522.11442457,0.00026999,25]
[341654670,1731065447030,-1156.13063855,0.00026999,25]
[341654671,1731065447039,-233891.29752027,0.00027,4]
[341654672,1731065447059,-681987.2594842,0.00027,4]
[341654673,1731065447083,-2765.26797287,0.00027,4]
[341654674,1731065447098,-500.0,0.000268,2]
[341654675,1731065447107,-7799.84604429,0.00027,4]
[341654676,1731065447253,4163.46815598,0.00046,120]
[341654677,1731065448079,1000.0,0.00024638,2]
[341654678,1731065448842,-1158.0,0.00026484,2]
[341654679,1731065448852,-500.0,0.000268,2]
[341654680,1731065448862,-500.0,0.000268,2]
[341654681,1731065448871,-500.0,0.000268,2]
[341654682,1731065448881,-500.0,0.000268,2]
[341654683,1731065448891,-500.0,0.000268,2]
[341654684,1731065448900,-500.0,0.000268,2]
[341654685,1731065448909,-500.0,0.000268,2]
[341654686,1731065448919,-500.0,0.000268,2]
[341654687,1731065448928,-500.0,0.000268,2]
[341654688,1731065448937,-500.0,0.000268,2]
[341654689,1731065448947,-500.0,0.000268,2]
[341654690,1731065448956,-500.0,0.000268,2]
[341654691,1731065448965,-500.0,0.000268,2]
[341654692,1731065448975,-10000.0,0.00026999,2]
[341654693,1731065448984,-160711.0777924,0.00027,4]
[341654694,1731065449237,-500.0,0.000268,2]
[341654695,1731065449247,-500.0,0.000268,2]
[341654696,1731065449257,-2000.24699332,0.00027,4]
[341654697,1731065462773,-291527.80966227,0.00027,4]
[341654698,1731065462783,-16419.90605936,0.00027,4]
[341654699,1731065462793,-10032442.03733873,0.00027,4]
[341654700,1731065463268,-18.06341898,0.00027,4]
[341654701,1731065463307,-500.0,0.000268,2]
[341654702,1731065463318,-1498.45970101,0.00027,4]
[341654703,1731065463333,-4658.03670453,0.00027,4]
[341654704,1731065483776,-150.549,0.00026484,2]
[341654705,1731065483785,-500.0,0.000268,2]
[341654706,1731065483802,-500.0,0.000268,2]
[341654707,1731065483812,-500.0,0.000268,2]
[341654708,1731065483821,-500.0,0.000268,2]
[341654709,1731065483831,-410.380806,0.000269,2]